[Event "*** Titled Tuesday Blitz"]
[Site "Chess.com"]
[Date "2020.04.28"]
[Round "9"]
[White "SahajGrover"]
[Black "KinKaiser"]
[Result "1-0"]
[WhiteElo "2725"]
[BlackElo "2566"]
[TimeControl "180+1"]
[EndTime "11:46:56 PDT"]
[Termination "SahajGrover won on time"]

1. d4 {[%clk 0:03:00.9]} 1... d5 {[%clk 0:02:56.7]} 2. Bf4 {[%clk 0:03:01.4]}
2... Nf6 {[%clk 0:02:55.2]} 3. e3 {[%clk 0:03:01.6]} 3... c5 {[%clk 0:02:55.3]}
4. c3 {[%clk 0:03:00]} 4... Nc6 {[%clk 0:02:54.3]} 5. Nd2 {[%clk 0:03:00.4]}
5... Bf5 {[%clk 0:02:51.3]} 6. Ngf3 {[%clk 0:03:00.7]} 6... e6 {[%clk
0:02:49.5]} 7. Qb3 {[%clk 0:03:01.2]} 7... Qb6 {[%clk 0:02:36.5]} 8. Bb5 {[%clk
0:02:46.8]} 8... c4 {[%clk 0:02:26.6]} 9. Qa4 {[%clk 0:02:40.7]} 9... a6 {[%clk
0:02:20.1]} 10. Bxc6+ {[%clk 0:02:39.6]} 10... Qxc6 {[%clk 0:02:17.5]} 11. Qxc6+
{[%clk 0:02:34.5]} 11... bxc6 {[%clk 0:02:17.4]} 12. b3 {[%clk 0:02:35.1]} 12...
Ba3 {[%clk 0:02:10.5]} 13. bxc4 {[%clk 0:02:18.3]} 13... Bb2 {[%clk 0:02:09.4]}
14. Ke2 {[%clk 0:02:18]} 14... Bxa1 {[%clk 0:01:45.6]} 15. Rxa1 {[%clk
0:02:18.9]} 15... Ne4 {[%clk 0:01:41.6]} 16. Nxe4 {[%clk 0:02:10.6]} 16... Bxe4
{[%clk 0:01:42.5]} 17. Nd2 {[%clk 0:02:11.1]} 17... Bg6 {[%clk 0:01:38.1]} 18.
c5 {[%clk 0:01:45.4]} 18... O-O {[%clk 0:01:31.8]} 19. Bd6 {[%clk 0:01:40.1]}
19... Rfd8 {[%clk 0:01:30.3]} 20. Nb3 {[%clk 0:01:39.5]} 20... a5 {[%clk
0:01:26.7]} 21. Bc7 {[%clk 0:01:20.8]} 21... Rd7 {[%clk 0:01:21.3]} 22. Bb6
{[%clk 0:01:18.5]} 22... a4 {[%clk 0:01:16.1]} 23. Na5 {[%clk 0:01:18.3]} 23...
Rc8 {[%clk 0:01:08.9]} 24. a3 {[%clk 0:01:15.8]} 24... Ra8 {[%clk 0:00:53.7]}
25. Ra2 {[%clk 0:01:13.3]} 25... Rxa5 {[%clk 0:00:49.9]} 26. Bxa5 {[%clk
0:01:14.2]} 26... Ra7 {[%clk 0:00:43.9]} 27. Bb6 {[%clk 0:01:14]} 27... Ra6
{[%clk 0:00:41.6]} 28. Rb2 {[%clk 0:01:14.2]} 28... f6 {[%clk 0:00:33.9]} 29.
Bc7 {[%clk 0:01:13.3]} 29... Be8 {[%clk 0:00:30.6]} 30. Rb7 {[%clk 0:01:03]}
30... Ra8 {[%clk 0:00:27.5]} 31. h4 {[%clk 0:00:57.4]} 31... h5 {[%clk
0:00:27.2]} 32. f3 {[%clk 0:00:51.8]} 32... Ra6 {[%clk 0:00:27.1]} 33. Kd2
{[%clk 0:00:45.2]} 33... Ra8 {[%clk 0:00:27.1]} 34. Kd3 {[%clk 0:00:37.1]} 34...
Bg6+ {[%clk 0:00:26]} 35. Kd2 {[%clk 0:00:36.7]} 35... Be8 {[%clk 0:00:26.9]}
36. c4 {[%clk 0:00:31.9]} 36... Ra6 {[%clk 0:00:25.5]} 37. Kc3 {[%clk
0:00:30.4]} 37... Ra8 {[%clk 0:00:25.5]} 38. Kb4 {[%clk 0:00:24.9]} 38... Bg6
{[%clk 0:00:23.4]} 39. Rb6 {[%clk 0:00:20.7]} 39... Be8 {[%clk 0:00:20.8]} 40.
Rb8 {[%clk 0:00:18.1]} 40... Rxb8+ {[%clk 0:00:18.6]} 41. Bxb8 {[%clk 0:00:19]}
41... dxc4 {[%clk 0:00:19.4]} 42. Kxc4 {[%clk 0:00:16.6]} 42... Bg6 {[%clk
0:00:17.9]} 43. Kb4 {[%clk 0:00:17]} 43... Bc2 {[%clk 0:00:17.7]} 44. Ka5 {[%clk
0:00:17.4]} 44... Bd3 {[%clk 0:00:10.5]} 45. Kxa4 {[%clk 0:00:17.5]} 45... Kf7
{[%clk 0:00:10.4]} 46. Ka5 {[%clk 0:00:17.8]} 46... Ke8 {[%clk 0:00:10.4]} 47.
Kb6 {[%clk 0:00:18]} 47... Kd7 {[%clk 0:00:11.1]} 48. a4 {[%clk 0:00:18.4]}
48... Kc8 {[%clk 0:00:11.5]} 49. Bd6 {[%clk 0:00:18.4]} 49... Bf1 {[%clk
0:00:11.5]} 50. a5 {[%clk 0:00:18.9]} 1-0

[Event "*** Titled Tuesday Blitz"]
[Site "Chess.com"]
[Date "2020.04.28"]
[Round "9"]
[White "GMNeiksans"]
[Black "MusicCityMaster"]
[Result "1-0"]
[WhiteElo "2779"]
[BlackElo "2292"]
[TimeControl "180+1"]
[EndTime "11:46:58 PDT"]
[Termination "GMNeiksans won on time"]

1. e4 {[%clk 0:03:00.9]} 1... c5 {[%clk 0:02:41.6]} 2. Nf3 {[%clk 0:03:00.4]}
2... d6 {[%clk 0:02:41.5]} 3. Bb5+ {[%clk 0:02:59.1]} 3... Nd7 {[%clk
0:02:40.8]} 4. O-O {[%clk 0:02:58.3]} 4... a6 {[%clk 0:02:37.4]} 5. Bd3 {[%clk
0:02:58.2]} 5... Ngf6 {[%clk 0:02:35.3]} 6. Re1 {[%clk 0:02:58]} 6... e6 {[%clk
0:02:31]} 7. c3 {[%clk 0:02:57.7]} 7... Be7 {[%clk 0:02:29.6]} 8. Bc2 {[%clk
0:02:57.2]} 8... O-O {[%clk 0:02:18.3]} 9. d4 {[%clk 0:02:56.9]} 9... e5 {[%clk
0:02:18.5]} 10. a4 {[%clk 0:02:37.1]} 10... Re8 {[%clk 0:02:08.6]} 11. Na3
{[%clk 0:02:26.8]} 11... b5 {[%clk 0:02:03.3]} 12. Bg5 {[%clk 0:02:02.3]} 12...
Rb8 {[%clk 0:01:55.5]} 13. axb5 {[%clk 0:02:01.5]} 13... axb5 {[%clk 0:01:55.3]}
14. b4 {[%clk 0:01:40]} 14... cxb4 {[%clk 0:01:38.7]} 15. cxb4 {[%clk
0:01:39.9]} 15... h6 {[%clk 0:01:33.7]} 16. Bd2 {[%clk 0:01:32.4]} 16... Bf8
{[%clk 0:01:28.7]} 17. d5 {[%clk 0:01:26.2]} 17... Nb6 {[%clk 0:01:18.4]} 18.
Bd3 {[%clk 0:01:19.7]} 18... Bd7 {[%clk 0:01:13.7]} 19. Bf1 {[%clk 0:00:57.5]}
19... g6 {[%clk 0:00:47.5]} 20. Qb3 {[%clk 0:00:57.2]} 20... Qe7 {[%clk
0:00:39.3]} 21. Rac1 {[%clk 0:00:49.8]} 21... Nh5 {[%clk 0:00:31.2]} 22. Nxb5
{[%clk 0:00:45.6]} 22... f5 {[%clk 0:00:23]} 23. exf5 {[%clk 0:00:41]} 23...
gxf5 {[%clk 0:00:22.1]} 24. Na7 {[%clk 0:00:37]} 24... Qf7 {[%clk 0:00:19.5]}
25. Nc6 {[%clk 0:00:26.4]} 25... Rbc8 {[%clk 0:00:16.4]} 26. b5 {[%clk
0:00:24.7]} 26... Nxd5 {[%clk 0:00:15.9]} 27. Bc4 {[%clk 0:00:23.2]} 27... Be6
{[%clk 0:00:16.1]} 28. Red1 {[%clk 0:00:16.1]} 28... Ndf4 {[%clk 0:00:14.8]} 29.
Bxf4 {[%clk 0:00:11.6]} 29... Nxf4 {[%clk 0:00:14.1]} 30. Bxe6 {[%clk
0:00:11.9]} 30... Nxe6 {[%clk 0:00:14]} 31. b6 {[%clk 0:00:12.1]} 31... Nc5
{[%clk 0:00:09.4]} 32. Qxf7+ {[%clk 0:00:11]} 32... Kxf7 {[%clk 0:00:09.9]} 33.
Rxc5 {[%clk 0:00:08.4]} 33... dxc5 {[%clk 0:00:09.5]} 34. Ncxe5+ {[%clk
0:00:08.5]} 34... Ke6 {[%clk 0:00:08.4]} 35. Nc4 {[%clk 0:00:08.8]} 35... Rb8
{[%clk 0:00:08.2]} 36. Nfe5 {[%clk 0:00:04.2]} 36... Be7 {[%clk 0:00:07.7]} 37.
Nc6 {[%clk 0:00:03.8]} 37... Rb7 {[%clk 0:00:07.6]} 38. N6a5 {[%clk 0:00:04.1]}
38... Rbb8 {[%clk 0:00:07.5]} 39. b7 {[%clk 0:00:04.7]} 39... Bd8 {[%clk
0:00:06.8]} 40. Nc6 {[%clk 0:00:04.9]} 40... Rxb7 {[%clk 0:00:06.7]} 41. Re1+
{[%clk 0:00:02.9]} 41... Kd7 {[%clk 0:00:06.3]} 42. N6e5+ {[%clk 0:00:03.1]}
42... Kc8 {[%clk 0:00:06.5]} 43. Nd6+ {[%clk 0:00:02.9]} 43... Kb8 {[%clk
0:00:05.8]} 44. Nxe8 {[%clk 0:00:03.4]} 44... Be7 {[%clk 0:00:05.7]} 45. Nf3
{[%clk 0:00:03.5]} 45... c4 {[%clk 0:00:05.5]} 46. g3 {[%clk 0:00:03.9]} 46...
c3 {[%clk 0:00:05.8]} 47. Rc1 {[%clk 0:00:04.3]} 47... Bb4 {[%clk 0:00:05.8]}
48. Nf6 {[%clk 0:00:03.9]} 48... Rb6 {[%clk 0:00:04]} 49. Nd5 {[%clk 0:00:04.2]}
49... Rb5 {[%clk 0:00:04.2]} 50. Nxb4 {[%clk 0:00:04.3]} 50... Rxb4 {[%clk
0:00:04.7]} 51. Rxc3 {[%clk 0:00:04]} 1-0

[Event "*** Titled Tuesday Blitz"]
[Site "Chess.com"]
[Date "2020.04.28"]
[Round "9"]
[White "kinga2008"]
[Black "Training_Day"]
[Result "0-1"]
[WhiteElo "2102"]
[BlackElo "2270"]
[TimeControl "180+1"]
[EndTime "11:47:01 PDT"]
[Termination "Training_Day won by resignation"]

1. e4 {[%clk 0:03:00.9]} 1... e5 {[%clk 0:02:59.6]} 2. Nf3 {[%clk 0:02:59.9]}
2... Nc6 {[%clk 0:02:56.4]} 3. d4 {[%clk 0:02:57.6]} 3... exd4 {[%clk
0:02:56.1]} 4. Bc4 {[%clk 0:02:58.1]} 4... Nf6 {[%clk 0:02:55.1]} 5. O-O {[%clk
0:02:57.4]} 5... Nxe4 {[%clk 0:02:54.3]} 6. Re1 {[%clk 0:02:57.6]} 6... d5
{[%clk 0:02:54.1]} 7. Bxd5 {[%clk 0:02:57.9]} 7... Qxd5 {[%clk 0:02:54.8]} 8.
Nc3 {[%clk 0:02:58.5]} 8... Qd7 {[%clk 0:02:40.9]} 9. Nxe4 {[%clk 0:02:57.7]}
9... Be7 {[%clk 0:02:39.7]} 10. Nc5 {[%clk 0:02:53.6]} 10... Qd5 {[%clk
0:02:32.7]} 11. Nb3 {[%clk 0:02:50.8]} 11... Bg4 {[%clk 0:02:26.9]} 12. Bf4
{[%clk 0:02:24.8]} 12... Bxf3 {[%clk 0:02:23.7]} 13. Qxf3 {[%clk 0:02:18.4]}
13... Qxf3 {[%clk 0:02:22.2]} 14. gxf3 {[%clk 0:02:19.3]} 14... O-O-O {[%clk
0:02:21.9]} 15. a3 {[%clk 0:02:13.6]} 15... Bf6 {[%clk 0:02:12.6]} 16. Nc5
{[%clk 0:02:08.9]} 16... Rhe8 {[%clk 0:01:56.7]} 17. Ne4 {[%clk 0:02:07.7]}
17... Be5 {[%clk 0:01:55.5]} 18. Bxe5 {[%clk 0:02:06.1]} 18... Nxe5 {[%clk
0:01:55.3]} 19. Kg2 {[%clk 0:02:01.8]} 19... Re6 {[%clk 0:01:50.8]} 20. f4
{[%clk 0:01:59.2]} 20... Rg6+ {[%clk 0:01:47.7]} 21. Ng3 {[%clk 0:01:48.4]}
21... Nc4 {[%clk 0:01:42.7]} 22. b3 {[%clk 0:01:47.4]} 22... Nd6 {[%clk
0:01:39.2]} 23. Kf3 {[%clk 0:01:45.8]} 23... Rh6 {[%clk 0:01:30.9]} 24. Kg2
{[%clk 0:01:34]} 24... c5 {[%clk 0:01:23.6]} 25. Re5 {[%clk 0:01:28.8]} 25... b6
{[%clk 0:01:12.2]} 26. Rae1 {[%clk 0:01:27.3]} 26... Rd7 {[%clk 0:01:08.2]} 27.
Nf5 {[%clk 0:01:22.5]} 27... Nxf5 {[%clk 0:01:03.1]} 28. Rxf5 {[%clk 0:01:23.4]}
28... Re6 {[%clk 0:01:00.6]} 29. Rxe6 {[%clk 0:01:21.9]} 29... fxe6 {[%clk
0:01:00.6]} 30. Re5 {[%clk 0:01:22.5]} 30... Re7 {[%clk 0:00:55.4]} 31. b4
{[%clk 0:01:21.7]} 31... c4 {[%clk 0:00:39.5]} 32. Re4 {[%clk 0:01:20.2]} 32...
Rd7 {[%clk 0:00:38.9]} 33. Rxe6 {[%clk 0:01:19.1]} 33... d3 {[%clk 0:00:35.9]}
34. cxd3 {[%clk 0:01:18.3]} 34... cxd3 {[%clk 0:00:36]} 35. Re1 {[%clk
0:01:18.6]} 35... d2 {[%clk 0:00:31.2]} 36. Rd1 {[%clk 0:01:17.2]} 36... Kc7
{[%clk 0:00:31.6]} 37. Kf3 {[%clk 0:01:09.6]} 37... Kc6 {[%clk 0:00:31.9]} 38.
Ke3 {[%clk 0:01:07.5]} 38... Kb5 {[%clk 0:00:32.1]} 39. Rxd2 {[%clk 0:00:35.1]}
39... Rxd2 {[%clk 0:00:31.2]} 40. Kxd2 {[%clk 0:00:36]} 40... Ka4 {[%clk
0:00:30.7]} 41. f5 {[%clk 0:00:36.5]} 41... Kxa3 {[%clk 0:00:27.3]} 42. Kc3
{[%clk 0:00:36.4]} 42... b5 {[%clk 0:00:23.3]} 43. h4 {[%clk 0:00:35.1]} 43...
Ka4 {[%clk 0:00:18.9]} 44. h5 {[%clk 0:00:33.8]} 44... h6 {[%clk 0:00:18.7]} 45.
f4 {[%clk 0:00:28.2]} 45... Ka3 {[%clk 0:00:18.7]} 46. f6 {[%clk 0:00:20]} 46...
gxf6 {[%clk 0:00:18.4]} 47. f5 {[%clk 0:00:20.9]} 47... Ka4 {[%clk 0:00:17]} 48.
Kd4 {[%clk 0:00:21.8]} 48... Kxb4 {[%clk 0:00:17.3]} 49. Kd5 {[%clk 0:00:22.7]}
49... Ka4 {[%clk 0:00:16.1]} 50. Ke6 {[%clk 0:00:23.6]} 50... b4 {[%clk
0:00:16.7]} 51. Kxf6 {[%clk 0:00:24.5]} 51... b3 {[%clk 0:00:17.4]} 52. Kg6
{[%clk 0:00:25.1]} 52... b2 {[%clk 0:00:17.4]} 53. f6 {[%clk 0:00:26]} 53...
b1=Q+ {[%clk 0:00:17.7]} 54. Kxh6 {[%clk 0:00:25.9]} 54... Qf5 {[%clk
0:00:16.7]} 55. f7 {[%clk 0:00:16.7]} 55... Qxf7 {[%clk 0:00:15.7]} 56. Kg5
{[%clk 0:00:17.6]} 56... Qh7 {[%clk 0:00:14.7]} 57. h6 {[%clk 0:00:18.5]} 57...
Kb5 {[%clk 0:00:15.2]} 0-1

[Event "*** Titled Tuesday Blitz"]
[Site "Chess.com"]
[Date "2020.04.28"]
[Round "9"]
[White "lupta_robin"]
[Black "Shield12"]
[Result "1/2-1/2"]
[WhiteElo "2564"]
[BlackElo "2821"]
[TimeControl "180+1"]
[EndTime "11:47:02 PDT"]
[Termination "Game drawn by repetition"]

1. e4 {[%clk 0:03:00.9]} 1... c5 {[%clk 0:02:59.7]} 2. b3 {[%clk 0:03:00.7]}
2... Nf6 {[%clk 0:02:58.7]} 3. e5 {[%clk 0:02:59.4]} 3... Nd5 {[%clk 0:02:58.9]}
4. Nc3 {[%clk 0:02:59.6]} 4... Nxc3 {[%clk 0:02:55.1]} 5. dxc3 {[%clk
0:02:59.1]} 5... Nc6 {[%clk 0:02:56]} 6. Nf3 {[%clk 0:02:58.1]} 6... e6 {[%clk
0:02:52]} 7. Bf4 {[%clk 0:02:52.1]} 7... h6 {[%clk 0:02:50.8]} 8. h4 {[%clk
0:02:50]} 8... b6 {[%clk 0:02:49.3]} 9. Qd2 {[%clk 0:02:48.3]} 9... Qc7 {[%clk
0:02:48.6]} 10. O-O-O {[%clk 0:02:45.1]} 10... Bb7 {[%clk 0:02:48.6]} 11. Qe3
{[%clk 0:02:37.2]} 11... O-O-O {[%clk 0:02:38.8]} 12. Be2 {[%clk 0:02:30.1]}
12... Ne7 {[%clk 0:02:27.1]} 13. c4 {[%clk 0:02:26.3]} 13... Nf5 {[%clk
0:02:25.1]} 14. Qc3 {[%clk 0:02:18]} 14... Ne7 {[%clk 0:02:10.4]} 15. h5 {[%clk
0:02:05.3]} 15... f5 {[%clk 0:02:04.3]} 16. Nh4 {[%clk 0:01:55.8]} 16... Kb8
{[%clk 0:02:00.5]} 17. Bf3 {[%clk 0:01:51.4]} 17... Rg8 {[%clk 0:01:56.1]} 18.
a4 {[%clk 0:01:34.2]} 18... g5 {[%clk 0:01:46.5]} 19. hxg6 {[%clk 0:01:33]}
19... Nxg6 {[%clk 0:01:46.7]} 20. Nxg6 {[%clk 0:01:32.9]} 20... Rxg6 {[%clk
0:01:47.6]} 21. g3 {[%clk 0:01:26.3]} 21... Be7 {[%clk 0:01:43.8]} 22. Rxh6
{[%clk 0:01:16.8]} 22... Rxh6 {[%clk 0:01:42.3]} 23. Bxh6 {[%clk 0:01:17.7]}
23... Rh8 {[%clk 0:01:26.8]} 24. Bf4 {[%clk 0:01:16.6]} 24... Kc8 {[%clk
0:01:25]} 25. Kb2 {[%clk 0:01:11.5]} 25... Bf8 {[%clk 0:01:21.5]} 26. Bxb7+
{[%clk 0:00:55]} 26... Qxb7 {[%clk 0:01:21.1]} 27. Qe3 {[%clk 0:00:53.8]} 27...
Bg7 {[%clk 0:01:18.8]} 28. Bg5 {[%clk 0:00:52.5]} 28... Qe4 {[%clk 0:01:14.6]}
29. Qxe4 {[%clk 0:00:50.9]} 29... fxe4 {[%clk 0:01:15.5]} 30. Bf6 {[%clk
0:00:29.5]} 30... Bxf6 {[%clk 0:01:13.6]} 31. exf6 {[%clk 0:00:29.9]} 31... Rf8
{[%clk 0:01:14.4]} 32. Re1 {[%clk 0:00:29.9]} 32... Rxf6 {[%clk 0:01:10.2]} 33.
Rxe4 {[%clk 0:00:29.9]} 33... Rxf2 {[%clk 0:01:10.7]} 34. Rg4 {[%clk 0:00:27.9]}
34... Kc7 {[%clk 0:01:08]} 35. Rg7 {[%clk 0:00:27.6]} 35... Rg2 {[%clk
0:01:02.3]} 36. g4 {[%clk 0:00:27.1]} 36... a6 {[%clk 0:00:56.2]} 37. Kc3 {[%clk
0:00:26.6]} 37... Kc6 {[%clk 0:00:55]} 38. Kd3 {[%clk 0:00:25.4]} 38... Kd6
{[%clk 0:00:47.9]} 39. g5 {[%clk 0:00:23.5]} 39... Kc6 {[%clk 0:00:40]} 40. g6
{[%clk 0:00:23.2]} 40... d5 {[%clk 0:00:33.6]} 41. cxd5+ {[%clk 0:00:22.9]}
41... exd5 {[%clk 0:00:34.5]} 42. Rg8 {[%clk 0:00:21.3]} 42... Kb7 {[%clk
0:00:29.1]} 43. c3 {[%clk 0:00:17]} 43... Rg3+ {[%clk 0:00:25.9]} 44. Kd2 {[%clk
0:00:16.6]} 44... a5 {[%clk 0:00:21.4]} 45. g7 {[%clk 0:00:12.1]} 45... Rg1
{[%clk 0:00:19.9]} 46. Ke3 {[%clk 0:00:11.9]} 46... Rg4 {[%clk 0:00:18.1]} 47.
Kf3 {[%clk 0:00:11]} 47... Rg1 {[%clk 0:00:17.5]} 48. Kf4 {[%clk 0:00:11.1]}
48... Ka7 {[%clk 0:00:15]} 49. Ke5 {[%clk 0:00:11.1]} 49... d4 {[%clk
0:00:13.8]} 50. cxd4 {[%clk 0:00:10.9]} 50... cxd4 {[%clk 0:00:14.7]} 51. Kxd4
{[%clk 0:00:11]} 51... Kb7 {[%clk 0:00:15.2]} 52. Kc4 {[%clk 0:00:10.3]} 52...
Rg2 {[%clk 0:00:14.8]} 53. Kd5 {[%clk 0:00:08.6]} 53... Rg1 {[%clk 0:00:14.8]}
54. Kc4 {[%clk 0:00:08.7]} 54... Rg2 {[%clk 0:00:14.5]} 55. Kd5 {[%clk
0:00:08.4]} 55... Rg1 {[%clk 0:00:13.8]} 56. Kc4 {[%clk 0:00:07.4]} 1/2-1/2

[Event "*** Titled Tuesday Blitz"]
[Site "Chess.com"]
[Date "2020.04.28"]
[Round "9"]
[White "MaxVavulin"]
[Black "TheFireChess"]
[Result "1/2-1/2"]
[WhiteElo "2601"]
[BlackElo "2457"]
[TimeControl "180+1"]
[EndTime "11:47:03 PDT"]
[Termination "Game drawn by repetition"]

1. e4 {[%clk 0:03:00.9]} 1... c6 {[%clk 0:02:59.6]} 2. d4 {[%clk 0:02:57.3]}
2... d5 {[%clk 0:03:00.5]} 3. Nc3 {[%clk 0:02:57.6]} 3... b5 {[%clk 0:03:00.1]}
4. a3 {[%clk 0:02:56.4]} 4... dxe4 {[%clk 0:02:59.7]} 5. Nxe4 {[%clk 0:02:56.2]}
5... Bf5 {[%clk 0:03:00.3]} 6. Ng3 {[%clk 0:02:56.1]} 6... Bg6 {[%clk
0:03:00.9]} 7. Nf3 {[%clk 0:02:51.3]} 7... Nd7 {[%clk 0:03:00.6]} 8. Nh4 {[%clk
0:02:46.6]} 8... e6 {[%clk 0:02:56.7]} 9. Nxg6 {[%clk 0:02:46.6]} 9... hxg6
{[%clk 0:02:57.6]} 10. Qf3 {[%clk 0:02:45.1]} 10... Rc8 {[%clk 0:02:54.1]} 11.
a4 {[%clk 0:02:43]} 11... b4 {[%clk 0:02:52.7]} 12. Ba6 {[%clk 0:02:41.6]} 12...
Rb8 {[%clk 0:02:40.4]} 13. Qxc6 {[%clk 0:02:34]} 13... Rb6 {[%clk 0:02:22.5]}
14. Qc4 {[%clk 0:02:24.4]} 14... Ngf6 {[%clk 0:01:45.7]} 15. a5 {[%clk
0:02:04.2]} 15... Rd6 {[%clk 0:01:39.4]} 16. Bb5 {[%clk 0:01:55.5]} 16... Be7
{[%clk 0:00:46.6]} 17. Bf4 {[%clk 0:01:53.1]} 17... Rd5 {[%clk 0:00:46.9]} 18.
Bc6 {[%clk 0:01:45.1]} 18... Rxa5 {[%clk 0:00:40.1]} 19. O-O {[%clk 0:01:21.4]}
19... Rxa1 {[%clk 0:00:35.7]} 20. Rxa1 {[%clk 0:01:21.2]} 20... O-O {[%clk
0:00:35.8]} 21. Rxa7 {[%clk 0:01:15.8]} 21... Nb6 {[%clk 0:00:33.5]} 22. Qd3
{[%clk 0:01:12.9]} 22... Nfd5 {[%clk 0:00:31.5]} 23. Bd2 {[%clk 0:01:02.7]}
23... Qb8 {[%clk 0:00:28.3]} 24. Ra1 {[%clk 0:00:53]} 24... Rc8 {[%clk
0:00:28.1]} 25. Bxd5 {[%clk 0:00:48.5]} 25... Nxd5 {[%clk 0:00:29]} 26. Nf1
{[%clk 0:00:48.2]} 26... Qc7 {[%clk 0:00:22.6]} 27. Rc1 {[%clk 0:00:42.8]} 27...
Bd6 {[%clk 0:00:20.8]} 28. g3 {[%clk 0:00:42]} 28... Qb7 {[%clk 0:00:19.7]} 29.
Ne3 {[%clk 0:00:33.7]} 29... Nxe3 {[%clk 0:00:18.3]} 30. Bxe3 {[%clk 0:00:32.8]}
30... Qf3 {[%clk 0:00:17.4]} 31. Ra1 {[%clk 0:00:24.2]} 31... Kh7 {[%clk
0:00:16.4]} 32. Qa6 {[%clk 0:00:17.5]} 32... Rc6 {[%clk 0:00:15.8]} 33. Qb7
{[%clk 0:00:16.4]} 33... g5 {[%clk 0:00:13.6]} 34. c4 {[%clk 0:00:10.7]} 34...
bxc3 {[%clk 0:00:12.8]} 35. bxc3 {[%clk 0:00:10.9]} 35... g4 {[%clk 0:00:13.2]}
36. Qb3 {[%clk 0:00:05.8]} 36... e5 {[%clk 0:00:11.2]} 37. d5 {[%clk 0:00:04.6]}
37... Rc8 {[%clk 0:00:11.1]} 38. c4 {[%clk 0:00:04.4]} 38... Bc5 {[%clk
0:00:11]} 39. Qc2+ {[%clk 0:00:04.2]} 39... g6 {[%clk 0:00:10.6]} 40. Bxc5
{[%clk 0:00:04.1]} 40... Rxc5 {[%clk 0:00:11.5]} 41. Re1 {[%clk 0:00:04.1]}
41... Qxd5 {[%clk 0:00:11.5]} 42. cxd5 {[%clk 0:00:02.8]} 42... Rxc2 {[%clk
0:00:11.4]} 43. Rxe5 {[%clk 0:00:03.4]} 43... Rd2 {[%clk 0:00:11.4]} 44. Kf1
{[%clk 0:00:03.6]} 44... Kg7 {[%clk 0:00:11.4]} 45. Ke1 {[%clk 0:00:04]} 45...
Rd4 {[%clk 0:00:11.7]} 46. Ke2 {[%clk 0:00:04.2]} 46... Kf6 {[%clk 0:00:12.1]}
47. Re8 {[%clk 0:00:04.1]} 47... Rxd5 {[%clk 0:00:12.4]} 48. Rh8 {[%clk
0:00:04.1]} 48... Rh5 {[%clk 0:00:11.3]} 49. Rxh5 {[%clk 0:00:03.4]} 49... gxh5
{[%clk 0:00:12.2]} 50. Ke3 {[%clk 0:00:03.6]} 50... Ke5 {[%clk 0:00:12.7]} 51.
f3 {[%clk 0:00:03.1]} 51... f5 {[%clk 0:00:12]} 52. fxg4 {[%clk 0:00:02.3]}
52... fxg4 {[%clk 0:00:12.9]} 53. Kd3 {[%clk 0:00:02.4]} 53... Kd5 {[%clk
0:00:13.5]} 54. Ke3 {[%clk 0:00:02.6]} 54... Ke5 {[%clk 0:00:14]} 55. Kd3 {[%clk
0:00:02.1]} 55... Kd5 {[%clk 0:00:14.6]} 56. Ke3 {[%clk 0:00:02.3]} 56... Ke5
{[%clk 0:00:15.2]} 1/2-1/2